fUSD/lending_fUSD_20250106
["ID","MTS","AMOUNT","RATE_DAILY","PERIOD"]
[347913083,1736196645689,-500.0,0.00011643,2]
[347913085,1736196645699,-1318.81,0.00011643,2]
[347913087,1736196645708,-500.0,0.00011643,2]
[347913089,1736196645717,-500.0,0.00011643,2]
[347913091,1736196645726,-748.71,0.00011643,2]
[347913094,1736196645735,-1399.67,0.00011643,2]
[347913096,1736196645744,-570.45883314,0.00011643,2]
[347913098,1736196645753,-500.0,0.00011643,2]
[347913100,1736196645762,-531.37,0.00011643,2]
[347913102,1736196645771,-604.16,0.00011643,2]
[347913104,1736196645780,-588.47,0.00011643,2]
[347913107,1736196645789,-1043.87,0.00011643,2]
[347913109,1736196645799,-500.0,0.00011643,2]
[347913111,1736196645808,-717.92,0.00011643,2]
[347913113,1736196645817,-500.0,0.00011643,2]
[347913115,1736196645826,-500.0,0.00011643,2]
[347913117,1736196645835,-944.83,0.00011643,2]
[347913119,1736196645845,-500.0,0.00011643,2]
[347913121,1736196645854,-500.0,0.00011643,2]
[347913123,1736196645863,-500.0,0.00011643,2]
[347913125,1736196645872,-815.25,0.00011643,2]
[347913127,1736196645881,-500.0,0.00011643,2]
[347913129,1736196645890,-533.93,0.00011643,2]
[347913131,1736196645899,-272.08725538,0.00011643,2]
[347913136,1736196645941,-227.91274462,0.00011643,2]
[347913138,1736196645950,-756.202,0.0001168,2]
[347913140,1736196645960,-150.0,0.00011708,2]
[347913142,1736196645969,-1500.0,0.00011709,2]
[347913144,1736196645978,-242.0,0.0001173,2]
[347913146,1736196645987,-436.0,0.0001173,2]
[347913148,1736196645997,-151.74547533,0.00011752,2]
[347913150,1736196646006,-200.0,0.000118,2]
[347913152,1736196646015,-156.577727,0.00011808,2]
[347913154,1736196646024,-1500.0,0.00011838,2]
[347913156,1736196646034,-151.74547533,0.00011879,2]
[347913158,1736196646045,-242.0,0.0001189,2]
[347913160,1736196646054,-436.0,0.0001189,2]
[347913162,1736196646063,-150.0,0.0001191,2]
[347913164,1736196646072,-500.0,0.00011917,2]
[347913166,1736196646082,-500.0,0.00011917,2]
[347913168,1736196646091,-500.0,0.00011917,2]
[347913170,1736196646100,-1318.81,0.00011917,2]
[347913172,1736196646110,-500.0,0.00011917,2]
[347913174,1736196646119,-500.0,0.00011917,2]
[347913176,1736196646129,-748.71,0.00011917,2]
[347913178,1736196646138,-1399.67,0.00011917,2]
[347913180,1736196646147,-500.0,0.00011917,2]
[347913182,1736196646156,-531.37,0.00011917,2]
[347913184,1736196646165,-604.16,0.00011917,2]
[347913186,1736196646174,-588.47,0.00011917,2]
[347913188,1736196646183,-1043.87,0.00011917,2]
[347913190,1736196646193,-500.0,0.00011917,2]
[347913192,1736196646202,-717.92,0.00011917,2]
[347913194,1736196646211,-500.0,0.00011917,2]
[347913196,1736196646221,-500.0,0.00011917,2]
[347913198,1736196646230,-944.83,0.00011917,2]
[347913200,1736196646240,-500.0,0.00011917,2]
[347913202,1736196646250,-500.0,0.00011917,2]
[347913204,1736196646260,-500.0,0.00011917,2]
[347913206,1736196646270,-815.25,0.00011917,2]
[347913208,1736196646279,-500.0,0.00011917,2]
[347913210,1736196646288,-533.93,0.00011917,2]
[347913212,1736196646297,-500.0,0.00011917,2]
[347913214,1736196646306,-1327.82658172,0.00011955,2]
[347913216,1736196646318,-22800.17341828,0.00011955,2]
[347913218,1736196646327,-50948.55999145,0.00011957,2]
[347913220,1736196646337,-150.0,0.00011993,2]
[347913222,1736196646346,-1298.82,0.00012,2]
[347913224,1736196646355,-80795.0,0.00012,2]
[347913226,1736196646364,-151.74547533,0.00012007,2]
[347913228,1736196646374,-150.0,0.0001202,2]
[347913230,1736196646383,-242.0,0.0001205,2]
[347913232,1736196646392,-436.0,0.0001205,2]
[347913234,1736196646401,-2276.6658392,0.00012053,2]
[347913236,1736196646411,-150.0,0.00012056,2]
[347913256,1736196646587,-182.15,0.00012064,2]
[347913258,1736196646596,-250.0,0.00012064,2]
[347913260,1736196646605,-151.74547533,0.00012134,2]
[347913262,1736196646614,-500.0,0.00012191,2]
[347913264,1736196646623,-500.0,0.00012191,2]
[347913266,1736196646634,-403.7449321,0.00012191,2]
[347913268,1736196646643,-1318.81,0.00012191,2]
[347913270,1736196646652,-500.0,0.00012191,2]
[347913272,1736196646662,-500.0,0.00012191,2]
[347913274,1736196646671,-748.71,0.00012191,2]
[347913276,1736196646680,-1399.67,0.00012191,2]
[347913278,1736196646690,-500.0,0.00012191,2]
[347913280,1736196646699,-531.37,0.00012191,2]
[347913282,1736196646708,-604.16,0.00012191,2]
[347913284,1736196646717,-588.47,0.00012191,2]
[347913286,1736196646726,-1043.87,0.00012191,2]
[347913288,1736196646736,-500.0,0.00012191,2]
[347913290,1736196646745,-717.92,0.00012191,2]
[347913292,1736196646754,-500.0,0.00012191,2]
[347913294,1736196646763,-500.0,0.00012191,2]
[347913296,1736196646772,-944.83,0.00012191,2]
[347913298,1736196646782,-500.0,0.00012191,2]
[347913300,1736196646791,-500.0,0.00012191,2]
[347913302,1736196646800,-500.0,0.00012191,2]
[347913304,1736196646809,-815.25,0.00012191,2]
[347913306,1736196646818,-500.0,0.00012191,2]
[347913308,1736196646827,-533.93,0.00012191,2]
[347913310,1736196646836,-500.0,0.00012191,2]
[347913312,1736196646846,-5935.4504625,0.000122,2]
[347913314,1736196646855,-2648.64287755,0.000122,2]
[347913316,1736196646865,-242.0,0.0001221,2]
[347913318,1736196646874,-436.0,0.0001221,2]
[347913320,1736196646884,-151.74547533,0.00012262,2]
[347913322,1736196646893,-500.0,0.00012269,2]
[347913324,1736196646902,-500.0,0.00012269,2]
[347913326,1736196646912,-676.3,0.00012269,2]
[347913328,1736196646921,-500.0,0.00012269,2]
[347913331,1736196646931,-500.0,0.00012269,2]
[347913333,1736196646940,-1000.0,0.0001227,2]
[347913335,1736196646950,-1000.0,0.0001227,2]
[347913337,1736196646959,-1000.0,0.0001227,2]
[347913338,1736196646969,-1000.0,0.0001227,2]
[347913341,1736196646978,-1000.0,0.0001227,2]
[347913343,1736196646988,-500.0,0.0001227,2]
[347913345,1736196646997,-500.0,0.0001227,2]
[347913347,1736196647007,-500.0,0.0001227,2]
[347913349,1736196647016,-500.0,0.0001227,2]
[347913351,1736196647025,-692.15894642,0.0001227,2]
[347913353,1736196647038,-764.78,0.00012298,2]
[347913355,1736196647048,-500.0,0.00012298,2]
[347913357,1736196647057,-500.0,0.00012298,2]
[347913359,1736196647067,-500.0,0.00012298,2]
[347913361,1736196647076,-695.1,0.00012298,2]
[347913363,1736196647087,-500.0,0.00012298,2]
[347913365,1736196647096,-500.0,0.00012298,2]
[347913367,1736196647104,-500.0,0.00012298,2]
[347913368,1736196647115,-500.0,0.00012298,2]
[347913371,1736196647124,-500.0,0.00012298,2]
[347913373,1736196647134,-500.0,0.00012298,2]
[347913375,1736196647143,-500.0,0.00012298,2]
[347913377,1736196647152,-2000.0,0.00012299,2]
[347913378,1736196647162,-2000.0,0.00012299,2]
[347913380,1736196647172,-2000.0,0.00012299,2]
[347913383,1736196647181,-2000.0,0.00012299,2]
[347913384,1736196647190,-847.6129,0.00012299,2]
[347913386,1736196647199,-1723.53,0.00012299,2]
[347913388,1736196647208,-500.0,0.00012299,2]
[347913390,1736196647218,-500.0,0.00012299,2]
[347913392,1736196647228,-256102.04149714,0.000123,2]
[347913395,1736196647250,-500.0,0.00010821,2]
[347913397,1736196647259,-16789.80489185,0.000123,2]
[347913420,1736196647564,-35690.37758718,0.0001,2]
[347913421,1736196647577,-14309.62241282,0.0001,2]
[347913422,1736196647586,-500.0,0.00011095,2]
[347913424,1736196647596,-500.0,0.00011369,2]
[347913426,1736196647607,-500.0,0.00011643,2]
[347913428,1736196647615,-500.0,0.00011917,2]
[347913430,1736196647624,-500.0,0.00012191,2]
[347913432,1736196647634,-27288.87758956,0.000123,2]
[347913434,1736196647645,-79775.87745739,0.000123,2]
[347913436,1736196647656,-1264.56527626,0.000123,2]
[347913438,1736196647668,-20489.73963029,0.000123,2]
[347913441,1736196647687,-5254.55817386,0.000123,2]
[347913443,1736196647698,-3298.12190352,0.000123,2]
[347913445,1736196647710,-363.0,0.000123,2]
[347913451,1736196647749,-7392.2275,0.000123,2]
[347913453,1736196647768,-6300.0,0.000123,2]
[347913456,1736196647784,-6735.34923962,0.000123,2]
[347913458,1736196647796,-5337.5,0.000123,2]
[347913460,1736196647807,-655.5723265,0.000123,2]
[347913472,1736196647912,-69457.29340278,0.000123,2]
[347913483,1736196648108,-4957.9461,0.000123,2]
[347913484,1736196648122,-413.0373342,0.000123,2]
[347914097,1736196721315,1000.0,0.00012299,33]
[347914153,1736197832221,-1072.53,8.826e-05,2]
[347914154,1736197832231,-507.7052,9.9e-05,2]
[347914155,1736197832239,-1500.0,9.9e-05,2]
[347914156,1736197832248,-9260.95998661,9.9e-05,2]
[347914157,1736197832257,-10297.94906693,9.9e-05,2]
[347914158,1736197832266,-1977.93201929,9.9e-05,2]
[347914159,1736197832276,-500.0,9.999e-05,2]
[347914160,1736197832285,-500.0,9.999e-05,2]
[347914161,1736197832294,-500.0,9.999e-05,2]
[347914162,1736197832303,-500.0,9.999e-05,2]
[347914163,1736197832312,-500.0,9.999e-05,2]
[347914164,1736197832321,-500.0,9.999e-05,2]
[347914165,1736197832331,-500.0,9.999e-05,2]
[347914166,1736197832340,-500.0,9.999e-05,2]
[347914167,1736197832349,-500.0,9.999e-05,2]
[347914168,1736197832358,-500.0,9.999e-05,2]
[347914169,1736197832367,-500.0,9.999e-05,2]
[347914170,1736197832377,-500.0,9.999e-05,2]
[347914171,1736197832387,-697.94,9.999e-05,2]
[347914172,1736197832396,-500.0,9.999e-05,2]
[347914173,1736197832405,-500.0,9.999e-05,2]
[347914174,1736197832415,-500.0,9.999e-05,2]
[347914175,1736197832424,-500.0,9.999e-05,2]
[347914176,1736197832433,-500.0,9.999e-05,2]
[347914178,1736197832443,-695.1,9.999e-05,2]
[347914179,1736197832453,-151.74547533,0.0001,2]
[347914181,1736197832463,-151.09,0.00010137,2]
[347914183,1736197832472,-500.0,0.00010273,2]
[347914185,1736197832481,-514.98433414,0.00010273,2]
[347914187,1736197832490,-500.0,0.00010273,2]
[347914189,1736197832499,-500.0,0.00010273,2]
[347914191,1736197832509,-500.0,0.00010273,2]
[347914193,1736197832518,-500.0,0.00010273,2]
[347914195,1736197832528,-500.0,0.00010273,2]
[347914197,1736197832541,-500.0,0.00010273,2]
[347914199,1736197832550,-500.0,0.00010273,2]
[347914201,1736197832559,-697.94,0.00010273,2]
[347914203,1736197832569,-500.0,0.00010273,2]
[347914205,1736197832578,-500.0,0.00010273,2]
[347914207,1736197832588,-500.0,0.00010273,2]
[347914209,1736197832597,-500.0,0.00010273,2]
[347914211,1736197832607,-500.0,0.00010273,2]
[347914213,1736197832617,-695.1,0.00010273,2]
[347914215,1736197832626,-151.74547533,0.00010329,2]
[347914217,1736197832635,-500.0,0.00010547,2]
[347914219,1736197832645,-500.0,0.00010547,2]
[347914221,1736197832654,-500.0,0.00010547,2]
[347914223,1736197832663,-500.0,0.00010547,2]
[347914225,1736197832672,-527.6612777,0.00010547,2]
[347914227,1736197832681,-500.0,0.00010547,2]
[347914229,1736197832692,-500.0,0.00010547,2]
[347914231,1736197832702,-500.0,0.00010547,2]
[347914233,1736197832712,-697.94,0.00010547,2]
[347914235,1736197832721,-500.0,0.00010547,2]
[347914237,1736197832730,-500.0,0.00010547,2]
[347914239,1736197832740,-500.0,0.00010547,2]
[347914241,1736197832750,-500.0,0.00010547,2]
[347914243,1736197832759,-500.0,0.00010547,2]
[347914245,1736197832769,-695.1,0.00010547,2]
[347914247,1736197832778,-250.0,0.00010568,2]
[347914249,1736197832787,-250.0,0.00010577,2]
[347914251,1736197832796,-566.0,0.00010667,2]
[347914253,1736197832805,-3894.0,0.00010667,2]
[347914255,1736197832815,-9617.0,0.00010667,2]
[347914257,1736197832824,-150.0,0.00010667,2]
[347914259,1736197832835,-1170.0,0.00010667,2]
[347914261,1736197832844,-161.48,0.00010696,2]
[347914263,1736197832853,-151.74547533,0.00010757,2]
[347914265,1736197832862,-1000.0,0.00010792,2]
[347914267,1736197832871,-500.0,0.00010821,2]
[347914269,1736197832880,-500.0,0.00010821,2]
[347914271,1736197832889,-500.0,0.00010821,2]
[347914272,1736197832898,-233.61186133,0.00010821,2]
[347914274,1736197832909,-500.0,0.00010821,2]
[347914276,1736197832918,-500.0,0.00010821,2]
[347914278,1736197832927,-500.0,0.00010821,2]
[347914280,1736197832938,-697.94,0.00010821,2]
[347914282,1736197832948,-500.0,0.00010821,2]
[347914284,1736197832957,-500.0,0.00010821,2]
[347914286,1736197832966,-500.0,0.00010821,2]
[347914288,1736197832975,-500.0,0.00010821,2]
[347914290,1736197832984,-500.0,0.00010821,2]
[347914292,1736197832993,-695.1,0.00010821,2]
[347914294,1736197833002,-1723.53,0.00010958,2]
[347914296,1736197833012,-400.0,0.00010986,2]
[347914298,1736197833021,-550.0,0.00011,2]
[347914300,1736197833030,-1072.53,0.0001109,2]
[347914302,1736197833040,-255.62,0.00011094,2]
[347914304,1736197833049,-500.0,0.00011095,2]
[347914306,1736197833058,-500.0,0.00011095,2]
[347914308,1736197833067,-500.0,0.00011095,2]
[347914310,1736197833077,-500.0,0.00011095,2]
[347914312,1736197833087,-500.0,0.00011095,2]
[347914314,1736197833096,-697.94,0.00011095,2]
[347914316,1736197833105,-500.0,0.00011095,2]
[347914318,1736197833115,-500.0,0.00011095,2]
[347914320,1736197833125,-500.0,0.00011095,2]
[347914322,1736197833134,-500.0,0.00011095,2]
[347914324,1736197833143,-500.0,0.00011095,2]
[347914326,1736197833152,-695.1,0.00011095,2]
[347914328,1736197833161,-151.74547533,0.00011186,2]
[347914330,1736197833170,-192.032,0.00011196,2]
[347914332,1736197833179,-3750.77,0.00011196,2]
[347914334,1736197833189,-924.0,0.000113,3]
[347914336,1736197833198,-500.0,0.00011369,2]
[347914338,1736197833207,-500.0,0.00011369,2]
[347914340,1736197833216,-500.0,0.00011369,2]
[347914342,1736197833225,-500.0,0.00011369,2]
[347914344,1736197833235,-500.0,0.00011369,2]
[347914346,1736197833244,-697.94,0.00011369,2]
[347914348,1736197833253,-500.0,0.00011369,2]
[347914350,1736197833263,-500.0,0.00011369,2]
[347914352,1736197833271,-500.0,0.00011369,2]
[347914354,1736197833281,-500.0,0.00011369,2]
[347914356,1736197833290,-500.0,0.00011369,2]
[347914358,1736197833300,-695.1,0.00011369,2]
[347914360,1736197833309,-151.74547533,0.00011614,2]
[347914362,1736197833319,-500.0,0.00011643,2]
[347914364,1736197833328,-500.0,0.00011643,2]
[347914366,1736197833337,-500.0,0.00011643,2]
[347914368,1736197833347,-500.0,0.00011643,2]
[347914370,1736197833356,-500.0,0.00011643,2]
[347914372,1736197833366,-697.94,0.00011643,2]
[347914374,1736197833375,-500.0,0.00011643,2]
[347914376,1736197833385,-500.0,0.00011643,2]
[347914378,1736197833395,-500.0,0.00011643,2]
[347914380,1736197833404,-416.14255118,0.00011643,2]
[347914382,1736197833414,-500.0,0.00011643,2]
[347914383,1736197833423,-695.1,0.00011643,2]
[347914384,1736197833433,-745.728,0.0001168,2]
[347914385,1736197833442,-5559.0,0.000117,5]
[347914386,1736197833452,-200.0,0.000118,2]
[347914387,1736197833462,-500.0,0.00011917,2]
[347914388,1736197833471,-492.77428752,0.00011917,2]
[347914389,1736197833480,-547.32976748,0.00011917,2]
[347914390,1736197833489,-500.0,0.00011917,2]
[347914391,1736197833499,-500.0,0.00011917,2]
[347914392,1736197833508,-697.94,0.00011917,2]
[347914393,1736197833518,-500.0,0.00011917,2]
[347914394,1736197833527,-229.47559455,0.00011917,2]
[347914395,1736197833540,-500.0,0.00011917,2]
[347914396,1736197833549,-500.0,0.00011917,2]
[347914397,1736197833559,-695.1,0.00011917,2]
[347914398,1736197833568,-151.74547533,0.00012043,2]
[347914399,1736197833579,-2276.6658392,0.00012053,2]
[347914400,1736197833588,-1298.82,0.000121,2]
[347914401,1736197833598,-5128.8059,0.000121,2]
[347914402,1736197833607,-6247.6404,0.000121,2]
[347914403,1736197833617,-1000.0,0.00012141,2]
[347914404,1736197833626,-3144.4001,0.00012169,2]
[347914405,1736197833636,-500.0,0.00012191,2]
[347914406,1736197833645,-500.0,0.00012191,2]
[347914407,1736197833654,-500.0,0.00012191,2]
[347914408,1736197833664,-697.94,0.00012191,2]
[347914409,1736197833674,-531.81102135,0.00012191,2]
[347914410,1736197833684,-500.0,0.00012191,2]
[347914411,1736197833694,-500.0,0.00012191,2]
[347914412,1736197833704,-695.1,0.00012191,2]
[347914413,1736197833713,-5000.0,0.00012199,2]
[347914414,1736197833723,-35422.8645,0.000122,2]
[347914415,1736197833732,-266.3523318,0.000122,2]
[347914416,1736197833742,-2648.64287755,0.000122,2]
[347914417,1736197833751,-573.67951457,0.00012268,2]
[347914418,1736197833761,-500.0,0.00012268,2]
[347914419,1736197833771,-429.70346724,0.00012268,2]
[347914420,1736197833780,-500.0,0.00012268,2]
[347914421,1736197833790,-267.31966196,0.00012268,2]
[347914422,1736197833800,-650.72,0.00012268,2]
[347914423,1736197833810,-564.34,0.00012268,2]
[347914424,1736197833819,-806.45,0.00012268,2]
[347914425,1736197833828,-500.0,0.00012268,2]
[347914426,1736197833838,-764.01,0.00012268,2]
[347914427,1736197833847,-500.0,0.00012268,2]
[347914428,1736197833857,-500.0,0.00012268,2]
[347914429,1736197833867,-1000.0,0.0001227,2]
[347914430,1736197833876,-1000.0,0.0001227,2]
[347914431,1736197833886,-1000.0,0.0001227,2]
[347914432,1736197833895,-1000.0,0.0001227,2]
[347914433,1736197833904,-500.0,0.0001227,2]
[347914434,1736197833914,-500.0,0.0001227,2]
[347914435,1736197833923,-500.0,0.0001227,2]
[347914436,1736197833933,-500.0,0.0001227,2]
[347914437,1736197833943,-692.15894642,0.0001227,2]
[347914438,1736197833952,-1000.0,0.0001227,2]
[347914439,1736197833962,-500.0,0.00012273,2]
[347914440,1736197833971,-500.0,0.00012273,2]
[347914441,1736197833981,-500.0,0.00012295,2]
[347914442,1736197833991,-1213.06,0.00012295,2]
[347914443,1736197834000,-500.0,0.00012295,2]
[347914444,1736197834010,-500.0,0.00012295,2]
[347914445,1736197834019,-500.0,0.00012295,2]
[347914446,1736197834029,-500.0,0.00012295,2]
[347914447,1736197834038,-627.42,0.00012295,2]
[347914448,1736197834048,-500.0,0.00012295,2]
[347914449,1736197834058,-500.0,0.00012295,2]
[347914450,1736197834068,-716.75,0.00012295,2]
[347914451,1736197834077,-500.0,0.00012295,2]
[347914452,1736197834087,-500.0,0.00012295,2]
[347914453,1736197834097,-403.7449321,0.00012295,2]
[347914454,1736197834106,-900.04,0.00012295,2]
[347914455,1736197834116,-519.97,0.00012295,2]
[347914456,1736197834125,-77231.04301141,0.00012296,2]
[347914457,1736197834135,-2285.7281152,0.00012296,2]
[347914458,1736197834144,-3090.8258775,0.00012296,2]
[347914459,1736197834154,-500.0,0.00012298,2]
[347914460,1736197834164,-500.0,0.00012298,2]
[347914461,1736197834174,-500.0,0.00012298,2]
[347914462,1736197834183,-500.0,0.00012298,2]
[347914463,1736197834192,-500.0,0.00012298,2]
[347914464,1736197834202,-286586.32,0.00012299,2]
[347914465,1736197834211,-2000.0,0.00012299,2]
[347914466,1736197834221,-2000.0,0.00012299,2]
[347914467,1736197834231,-2000.0,0.00012299,2]
[347914468,1736197834240,-847.6129,0.00012299,2]
[347914469,1736197834250,-500.0,0.00012299,2]
[347914470,1736197834259,-500.0,0.00012299,2]
[347914471,1736197834268,-500.0,0.00012299,2]
[347914472,1736197834278,-500.0,0.00012299,2]
[347914473,1736197834288,-500.0,0.00012299,2]
[347914474,1736197834298,-1368848.46801224,0.000123,4]
[347914475,1736197834527,-326.75996925,0.000123,4]
[347914478,1736197837974,-723.25852889,0.000123,4]
[347914479,1736197838024,-18091.85004369,0.000123,4]
[347914480,1736197838133,-621.91635023,0.000123,4]
[347914481,1736197838144,-1105.77999,0.000123,4]
[347914482,1736197838154,-7363.4,0.000123,4]
[347914483,1736197838164,-10225.0,0.000123,4]
[347914484,1736197838189,-5012.264509,0.000123,4]
[347914782,1736197841378,-578.66322901,0.000123,4]
[347914789,1736197841435,-473.23780854,0.000123,4]
[347914945,1736197843003,-924.7454,0.000123,4]
[347914970,1736197843223,-9771.819,0.000123,4]
[347914977,1736197843280,-393396.23002963,0.000123,4]
[347914979,1736197843288,-53852.55384272,0.000123,2]
[347914981,1736197843300,-877.12281879,0.000123,2]
[347915263,1736197845992,-5115.85120432,0.000123,2]
[347915276,1736197846102,-918.7222703,0.000123,2]
[347915278,1736197846113,-154195.0907183,0.000123,2]
[347915289,1736197846211,-10262.46758824,0.000123,2]
[347915296,1736197846268,-8615.84028,0.000123,2]
[347916497,1736198050424,-978.28892629,9.999e-05,2]
[347916498,1736198050449,-500.0,9.999e-05,2]
[347916499,1736198050475,-500.0,9.999e-05,2]
[347916500,1736198050500,-500.0,9.999e-05,2]
[347916501,1736198050525,-407.48849773,9.999e-05,2]
[347916502,1736198050549,-500.0,9.999e-05,2]
[347916503,1736198050575,-279.58450902,9.999e-05,2]
[347916504,1736198050602,-500.0,9.999e-05,2]
[347916505,1736198050629,-10622.71107371,9.999e-05,7]
[347916655,1736199032167,-868.90602941,8.755e-05,2]
[347916656,1736199032179,-274.82397059,8.755e-05,2]
[347916657,1736199032189,-3125.17602942,9.973e-05,2]
[347916658,1736199032431,-541.345,9.973e-05,2]
[347916659,1736199032443,-1143.47897058,9.973e-05,2]
[347916660,1736199032453,-500.0,9.973e-05,2]
[347916661,1736199032463,-1572.07152644,9.999e-05,7]
[347916662,1736199032472,-500.0,9.999e-05,2]
[347916663,1736199032482,-500.0,9.999e-05,2]
[347916664,1736199032491,-500.0,9.999e-05,2]
[347916665,1736199032500,-500.0,9.999e-05,2]
[347916666,1736199032509,-500.0,9.999e-05,2]
[347916667,1736199032518,-500.0,9.999e-05,2]
[347916668,1736199032527,-500.0,9.999e-05,2]
[347916669,1736199032536,-164.44950287,9.999e-05,2]
[347916670,1736199032547,-335.55049713,9.999e-05,2]
[347916671,1736199032557,-414.75722983,9.999e-05,2]
[347916672,1736199032566,-84.36577304,9.999e-05,2]
[347916673,1736199032583,-415.63422696,9.999e-05,2]
[347916674,1736199032593,-902.89,9.999e-05,2]
[347916675,1736199032602,-31.78884143,0.0001,2]
[347916676,1736199032663,-39753.6523493,0.0001,2]
[347916678,1736199032674,-1633.06952951,0.0001,2]
[347916682,1736199032697,-1557.03707164,0.0001,2]
[347916684,1736199032708,-1943.98,0.0001,2]
[347916687,1736199032730,-9990.78806453,0.0001,2]
[347916689,1736199032741,-725.291,0.0001,2]
[347916692,1736199032752,-2996.18293705,0.0001,2]
[347916694,1736199032763,-1181.08180393,0.0001,2]
[347916696,1736199032774,-673.203376,0.0001,2]
[347916698,1736199032785,-1866.80167037,0.0001,2]
[347916700,1736199032795,-1149.98786791,0.0001,2]
[347916703,1736199032806,-1675.425,0.0001,2]
[347916705,1736199032823,-1509132.90640077,0.0001,2]
[347916707,1736199032834,-14806.10046189,0.0001,2]
[347916751,1736199038107,-206.4812229,9.999e-05,2]
[347916753,1736199038116,-261.9137771,0.0001,2]
[347916755,1736199038129,-2513.2158088,0.0001,2]
[347916760,1736199038172,-1022.0,0.0001,2]
[347916761,1736199038183,-2374.24422636,0.0001,2]
[347916762,1736199038226,-17544.88646173,0.0001,2]
[347916763,1736199038237,-1363.83747749,0.0001,2]
[347916764,1736199038248,-474.1866154,0.0001,2]
[347916765,1736199038291,-4000.0,0.0001,2]
[347916766,1736199038302,-9479.95569839,0.0001,2]
[347916767,1736199038313,-10220.72696509,0.0001,2]
[347916768,1736199038324,-4865.79896752,0.0001,2]
[347916769,1736199038335,-6823.99999999,0.0001,2]
[347916770,1736199038346,-1721.48259596,0.0001,2]
[347916771,1736199038357,-14609.92353959,0.0001,2]
[347916772,1736199038368,-303715.5663615,0.0001,2]
[347916773,1736199038379,-8292.53628286,0.0001,2]
[347916774,1736199038412,-517.7691157,0.0001,2]
[347916775,1736199038424,-2360.73409,0.0001,2]
[347916776,1736199038435,-500.0,0.0001,2]
[347916828,1736199040202,-495.00000005,0.0001,2]
[347916829,1736199040261,-2768.128,0.0001,2]
[347916830,1736199040272,-2929.40554296,0.0001,2]
[347916831,1736199040376,-39067.02098632,0.0001,2]
[347916832,1736199040517,-3529.65000033,0.0001,2]
[347916833,1736199040528,-871.73850948,0.0001,2]
[347916834,1736199040539,-3719.27464023,0.0001,2]
[347916835,1736199040550,-1866.05,0.0001,2]
[347916836,1736199040560,-4126.13424394,0.0001,2]
[347916837,1736199040571,-10000.0,0.0001,2]
[347916838,1736199040582,-265.7675427,0.0001,2]
[347916847,1736199043284,-7281.68363765,0.0001,2]
[347916848,1736199043344,-13624.54828251,0.0001,2]
[347916849,1736199043402,-470048.95729063,0.0001,2]
[347916850,1736199043517,-282.30400128,0.0001,2]
[347916855,1736199046136,-1162.51,9.999e-05,2]
[347916856,1736199046146,-37938.67289595,0.0001,2]
[347916857,1736199046158,-1695.07477946,0.0001,2]
[347916858,1736199046170,-866.37474104,0.0001,2]
[347916859,1736199046181,-12532.46973317,0.0001,2]
[347916860,1736199046193,-7391.51999648,0.0001,2]
[347916861,1736199046204,-4366.0,0.0001,2]
[347916862,1736199046250,-1091.28201,0.0001,2]
[347916863,1736199046262,-1065.83165509,0.0001,2]
[347916864,1736199046310,-1787.30255397,0.0001,2]
[347916865,1736199046321,-293.4270218,0.0001,2]
[347916866,1736199046371,-599.52586049,0.0001,2]